bitfinex/quotes_BTCUSD_20250308
["timestamp","ask_amount","ask_price","bid_price","bid_amount"]
[1741402013567,0.00522481,86228.0,86223.0,0.011597]
[1741402013568,0.01852686,86229.0,86228.0,0.011597]
[1741402014992,0.011594,86245.0,86235.0,0.231924]
[1741402015192,0.011594,86245.0,86236.0,0.116]
[1741402015193,0.011595,86242.0,86236.0,0.116]
[1741402015394,0.243514,86237.0,86236.0,0.116]
[1741402018516,0.26169927,86237.0,86236.0,0.116]
[1741402022333,0.243514,86237.0,86236.0,0.116]
[1741402022548,0.243503,86241.0,86236.0,0.116]
[1741402022944,0.0119352,86237.0,86236.0,0.116]
[1741402023365,0.0003402,86237.0,86236.0,0.116]
[1741402023532,0.0003402,86237.0,86236.0,0.204596]
[1741402024175,0.0003402,86237.0,86236.0,0.25435563]
[1741402024379,0.0003402,86237.0,86236.0,0.26420474]
[1741402024805,0.09240904,86259.0,86255.0,0.011593]
[1741402025007,0.09240904,86259.0,86258.0,0.011593]
[1741402025220,0.09240904,86259.0,86253.0,0.11604]
[1741402025416,0.10400104,86259.0,86253.0,0.11604]
[1741402025565,0.01818151,86258.0,86257.0,0.011593]
[1741402025978,0.01818151,86258.0,86257.0,0.01170953]
[1741402026577,0.01818151,86258.0,86257.0,0.08830953]
[1741402027633,0.02977451,86258.0,86257.0,0.00011653]
[1741402028066,0.03021193,86258.0,86257.0,0.00011653]
[1741402031239,0.02977451,86258.0,86257.0,0.00011653]
[1741402031445,0.03018681,86258.0,86257.0,0.00011653]
[1741402033316,0.06604671,86258.0,86257.0,0.00011653]
[1741402033930,0.02977451,86258.0,86257.0,0.00011653]
[1741402035041,0.01818151,86258.0,86257.0,0.00011653]
[1741402035455,0.011592,86259.0,86257.0,0.00011653]
[1741402035656,0.011593,86258.0,86257.0,0.00011653]
[1741402035861,0.04761895,86258.0,86257.0,0.00011653]
[1741402036445,0.03602595,86258.0,86257.0,0.00011653]
[1741402036643,0.011592,86259.0,86257.0,0.00011653]
[1741402036804,0.0003396,86258.0,86257.0,0.00011653]
[1741402038089,0.01852076,86258.0,86257.0,0.00011653]
[1741402038995,0.01852076,86258.0,86257.0,0.01170953]
[1741402039886,0.01852076,86258.0,86257.0,0.01286881]
[1741402041178,0.01852076,86258.0,86257.0,0.00011653]
[1741402041635,0.04113783,86258.0,86257.0,0.00011653]
[1741402041872,0.03011376,86258.0,86257.0,0.00011653]
[1741402042635,0.011596,86232.0,86230.0,0.0795]
[1741402042867,0.011596,86231.0,86230.0,0.0795]
[1741402043779,0.011596,86232.0,86230.0,0.0795]
[1741402043996,0.231921,86237.0,86230.0,0.0795]
[1741402044148,0.347886,86250.0,86238.0,0.011595]
[1741402044149,0.011594,86245.0,86238.0,0.011595]
[1741402044356,0.03596344,86244.0,86239.0,0.231913]
[1741402044565,0.011594,86245.0,86239.0,0.011595]
[1741402044761,0.011595,86244.0,86239.0,0.011595]
[1741402045168,0.011595,86243.0,86237.0,0.231918]
[1741402045390,0.243497,86243.0,86237.0,0.231918]
[1741402045756,0.011595,86244.0,86237.0,0.243513]
[1741402045975,0.011595,86244.0,86239.0,0.011595]
[1741402046402,0.243497,86243.0,86237.0,0.243513]
[1741402046614,0.011595,86243.0,86237.0,0.243513]
[1741402046985,0.243501,86242.0,86236.0,0.127596]
[1741402047159,0.011595,86239.0,86236.0,0.116]
[1741402047604,0.01818414,86243.0,86241.0,0.243502]
[1741402047815,0.01818414,86243.0,86239.0,0.231913]
[1741402047983,0.011595,86242.0,86236.0,0.127596]
[1741402048818,0.01818414,86243.0,86237.0,0.243514]
[1741402049024,0.01818414,86243.0,86238.0,0.011595]
[1741402049226,0.01818414,86243.0,86242.0,0.011595]
[1741402049630,0.01818414,86243.0,86239.0,0.2436777]
[1741402051716,0.011595,86240.0,86239.0,0.0001697]
[1741402057488,0.01818414,86243.0,86242.0,0.011595]
[1741402057684,0.01818414,86243.0,86242.0,0.231905]
[1741402057912,0.01818414,86243.0,86242.0,0.011595]
[1741402058591,0.01818414,86243.0,86239.0,0.0001697]
[1741402058823,0.011595,86241.0,86239.0,0.0001697]
[1741402059369,0.01818414,86243.0,86239.0,0.0001697]
[1741402059574,0.01818414,86243.0,86242.0,0.3259]
[1741402059785,0.01818414,86243.0,86242.0,0.093995]
[1741402060011,0.01818414,86243.0,86242.0,0.0824]
[1741402060652,0.02977914,86243.0,86242.0,0.0824]
[1741402060990,0.26168114,86243.0,86242.0,0.0824]
[1741402062400,0.21228535,86249.0,86242.0,0.0824]
[1741402062941,0.01818432,86248.0,86242.0,0.0824]
[1741402063063,0.21228535,86249.0,86242.0,0.0824]
[1741402063270,0.011594,86245.0,86242.0,0.0824]
[1741402063674,0.011594,86245.0,86240.0,0.116]
[1741402063675,0.011595,86241.0,86240.0,0.116]
[1741402065128,0.01005862,86241.0,86240.0,0.116]
[1741402065337,0.011595,86243.0,86239.0,0.0001697]
[1741402065896,0.02977883,86243.0,86239.0,0.0001697]
[1741402066310,0.01818383,86243.0,86242.0,0.011595]
[1741402071888,0.24090957,86252.0,86242.0,0.011595]
[1741402072245,0.01818412,86243.0,86242.0,0.011595]
[1741402072665,0.24348,86249.0,86243.0,0.011595]
[1741402072863,0.011594,86250.0,86244.0,0.243495]
[1741402073114,0.00902957,86252.0,86246.0,0.011594]
[1741402073677,0.24090957,86252.0,86245.0,0.011594]
[1741402074248,0.0003396,86249.0,86245.0,0.011594]
[1741402075684,0.01852238,86249.0,86245.0,0.011594]
[1741402076450,0.01852238,86249.0,86246.0,0.011594]
[1741402077804,0.01852238,86249.0,86247.0,0.243486]
[1741402078216,0.01852238,86249.0,86247.0,0.011594]
[1741402079385,0.01852238,86249.0,86245.0,0.011594]
[1741402079808,0.01852238,86249.0,86244.0,0.243495]
[1741402079964,0.01852238,86249.0,86244.0,0.011595]
[1741402080213,0.03011638,86249.0,86244.0,0.011595]
[1741402080914,0.01852238,86249.0,86244.0,0.011595]
[1741402081131,0.01852238,86249.0,86247.0,0.231892]
[1741402081697,0.01852238,86249.0,86246.0,0.011594]
[1741402081895,0.03606139,86248.0,86246.0,0.011594]
[1741402083871,0.011594,86247.0,86241.0,0.011595]
[1741402084000,0.03606139,86246.0,86241.0,0.011595]
[1741402084207,0.03606139,86246.0,86242.0,0.116]
[1741402084478,0.04765539,86246.0,86242.0,0.116]
[1741402084629,0.011594,86246.0,86242.0,0.116]
[1741402085248,0.011594,86247.0,86242.0,0.127595]
[1741402085450,0.03604615,86246.0,86242.0,0.127595]
[1741402087200,0.03604615,86246.0,86243.0,0.243497]
[1741402087405,0.03604615,86248.0,86245.0,0.011594]
[1741402087578,0.01852238,86249.0,86246.0,0.243488]
[1741402087784,0.03604491,86248.0,86245.0,0.011594]
[1741402089448,0.03604491,86248.0,86245.0,0.243488]
[1741402089569,0.03604491,86248.0,86247.0,0.134194]
[1741402089972,0.0003396,86249.0,86247.0,0.134194]
[1741402090212,0.0003396,86249.0,86248.0,0.243483]
[1741402097628,0.1071078,86264.0,86256.0,0.011593]
[1741402098004,0.01818053,86263.0,86256.0,0.24346]
[1741402098465,0.01818053,86263.0,86258.0,0.243453]
[1741402098670,0.01818053,86263.0,86261.0,0.011592]
[1741402098908,0.01818053,86263.0,86262.0,0.243443]
[1741402100846,0.01818053,86263.0,86259.0,0.011592]
[1741402100847,0.01818053,86263.0,86258.0,0.01170963]
[1741402101074,0.01818053,86263.0,86258.0,0.00011663]
[1741402101253,0.02977253,86263.0,86258.0,0.00011663]
[1741402103143,0.011592,86262.0,86258.0,0.00011663]
[1741402103747,0.011592,86259.0,86258.0,0.00011663]
[1741402106139,0.05583993,86261.0,86258.0,0.00011663]
[1741402106345,0.231859,86259.0,86258.0,0.00011663]
[1741402106895,0.26163311,86259.0,86258.0,0.00011663]
[1741402109544,0.01818211,86259.0,86258.0,0.00011663]
[1741402109797,0.01818211,86259.0,86258.0,0.01170963]
[1741402111103,0.01818211,86259.0,86258.0,0.05800963]
[1741402111597,0.10403913,86264.0,86263.0,0.243441]
[1741402112980,0.10403913,86264.0,86263.0,0.322241]
[1741402114635,0.0003394,86264.0,86263.0,0.322241]
[1741402116450,0.01851684,86264.0,86263.0,0.322241]
[1741402128843,0.01851684,86264.0,86263.0,0.643941]
[1741402135898,0.01851684,86264.0,86263.0,0.759821]
[1741402138549,0.0003394,86264.0,86263.0,0.759821]
[1741402141592,0.01851634,86264.0,86263.0,0.759821]
[1741402145138,0.10369973,86296.0,86295.0,0.243351]
[1741402145335,0.13978541,86296.0,86295.0,0.243351]
[1741402145542,0.10369973,86296.0,86295.0,0.243351]
[1741402147025,0.10369973,86298.0,86297.0,0.011587]
[1741402147232,0.13979422,86298.0,86297.0,0.011587]
[1741402148001,0.10369973,86298.0,86297.0,0.011587]
[1741402148429,0.12187229,86298.0,86297.0,0.011587]
[1741402149637,0.12187229,86298.0,86297.0,0.088287]
[1741402150152,0.12187229,86298.0,86297.0,0.137687]
[1741402151284,0.01817256,86298.0,86297.0,0.137687]
[1741402152323,0.0001164,86306.0,86305.0,0.243322]
[1741402152555,0.0001164,86306.0,86305.0,0.359122]
[1741402152823,0.0001164,86306.0,86305.0,0.435822]
[1741402155450,0.01828468,86306.0,86305.0,0.435822]
[1741402156225,0.01828468,86306.0,86305.0,0.757522]
[1741402159545,0.01862408,86306.0,86305.0,0.757522]
[1741402167615,0.00033299,86330.0,86305.0,0.5142]
[1741402167815,0.00038862,86324.0,86322.0,0.011584]
[1741402168391,0.00038862,86324.0,86323.0,0.243271]
[1741402171129,0.01855582,86324.0,86323.0,0.243271]
[1741402174189,0.0003396,86334.0,86323.0,0.011584]
[1741402174423,0.00045612,86334.0,86333.0,0.243244]
[1741402174675,0.00045612,86334.0,86333.0,0.358964]
[1741402180377,0.00045612,86334.0,86333.0,0.440064]
[1741402182050,1.2e-07,86334.0,86333.0,0.806864]
[1741402182290,1.2e-07,86334.0,86333.0,0.82140485]
[1741402183147,7.2e-07,86336.0,86335.0,0.243237]
[1741402183360,7.2e-07,86336.0,86335.0,0.325737]
[1741402183564,7.2e-07,86336.0,86335.0,0.66197785]
[1741402183801,1.2e-07,86339.0,86338.0,0.243229]
[1741402184028,1.2e-07,86339.0,86338.0,0.34026985]
[1741402186498,1.2e-07,86339.0,86338.0,0.34226985]
[1741402186698,1.2e-07,86339.0,86338.0,0.34126985]
[1741402186923,1.2e-07,86339.0,86338.0,0.34026985]
[1741402187184,1.2e-07,86339.0,86338.0,0.34126985]
[1741402187319,1.2e-07,86339.0,86338.0,0.34226985]
[1741402187957,1.2e-07,86339.0,86338.0,0.34426985]
[1741402188313,1.2e-07,86339.0,86338.0,0.66596985]
[1741402189140,1.2e-07,86339.0,86338.0,0.66196985]
[1741402189563,1.2e-07,86339.0,86338.0,0.66696985]
[1741402190045,1.2e-07,86339.0,86338.0,0.66396985]
[1741402190263,1.2e-07,86339.0,86338.0,0.66696985]
[1741402190677,1.2e-07,86339.0,86338.0,0.652429]
[1741402192520,1.2e-07,86339.0,86338.0,0.649429]
[1741402192727,1.2e-07,86339.0,86338.0,0.647429]
[1741402193251,1.2e-07,86339.0,86338.0,0.763109]
[1741402193946,0.01816077,86349.0,86338.0,0.763109]
[1741402194211,0.011578,86369.0,86359.0,0.011579]
[1741402194445,0.0116945,86365.0,86359.0,0.011579]
[1741402196464,0.243155,86364.0,86358.0,0.011579]
[1741402197111,0.0116945,86365.0,86359.0,0.011579]
[1741402197577,0.01815986,86363.0,86356.0,0.011579]
[1741402199189,0.01815986,86363.0,86355.0,0.34728]
[1741402199325,0.01815986,86363.0,86355.0,0.35886]
[1741402200935,0.01815986,86363.0,86360.0,0.011579]
[1741402201135,0.01815986,86363.0,86362.0,0.011579]
[1741402202895,0.01815986,86363.0,86358.0,0.231594]
[1741402203111,0.01815986,86363.0,86359.0,0.011579]
[1741402203702,0.01815986,86363.0,86361.0,0.011579]
[1741402204826,0.01815986,86363.0,86357.0,0.011579]
[1741402205039,0.01815986,86363.0,86357.0,0.243174]
[1741402205886,0.01815986,86363.0,86357.0,0.011579]
[1741402206097,0.01815986,86363.0,86361.0,0.011579]
[1741402206320,0.01815986,86363.0,86362.0,0.011579]
[1741402207292,0.0001165,86365.0,86364.0,0.011578]
[1741402210731,0.0001165,86365.0,86364.0,0.13493583]
[1741402213196,0.0001165,86365.0,86364.0,0.011578]
[1741402215344,0.0001165,86365.0,86364.0,0.127218]
[1741402216036,0.0001165,86365.0,86364.0,0.011578]
[1741402216549,0.0001165,86365.0,86362.0,0.3217]
[1741402217537,0.0001165,86365.0,86364.0,0.011578]
[1741402217968,0.0001165,86365.0,86362.0,0.553282]
[1741402218177,0.01827458,86365.0,86362.0,0.564861]
[1741402218601,0.01827458,86365.0,86364.0,0.011578]
[1741402219235,0.01827458,86365.0,86364.0,0.01273586]
[1741402219444,0.01827458,86365.0,86364.0,0.011578]
[1741402222265,0.01827458,86365.0,86363.0,0.00115776]
[1741402222473,0.01827458,86365.0,86362.0,0.3220394]
[1741402222474,0.0116945,86365.0,86362.0,0.3220394]
[1741402222678,0.011578,86364.0,86362.0,0.3220394]
[1741402222912,0.011579,86363.0,86362.0,0.3220394]
[1741402223090,0.01689818,86363.0,86362.0,0.3220394]
[1741402224986,0.02843703,86363.0,86362.0,0.3220394]
[1741402225194,0.01153544,86364.0,86362.0,0.3220394]
[1741402225415,0.24311444,86364.0,86362.0,0.3220394]
[1741402225616,0.01815872,86363.0,86362.0,0.3220394]
[1741402226029,0.02973772,86363.0,86362.0,0.3220394]
[1741402227062,0.02973772,86363.0,86362.0,0.0003394]
[1741402229094,0.01815872,86363.0,86362.0,0.0003394]
[1741402230763,0.02973772,86363.0,86362.0,0.0003394]
[1741402231618,0.04143284,86363.0,86362.0,0.0003394]
[1741402232228,0.11363284,86363.0,86362.0,0.0003394]
[1741402234881,0.09547412,86363.0,86362.0,0.0003394]
[1741402235082,0.13159552,86363.0,86362.0,0.0003394]
[1741402235549,0.63867637,86363.0,86362.0,0.0003394]
[1741402235755,0.66193854,86363.0,86362.0,0.0003394]
[1741402237793,0.68010104,86363.0,86362.0,0.0003394]
[1741402239177,0.01454085,86362.0,86357.0,4e-07]
[1741402239436,0.01454085,86362.0,86336.0,0.0003394]
[1741402239437,0.243232,86337.0,86336.0,0.0003394]
[1741402239645,0.2793534,86337.0,86336.0,0.0003394]
[1741402239851,0.29202939,86337.0,86336.0,0.0003394]
[1741402240285,0.31019608,86337.0,86336.0,0.0003394]
[1741402240824,0.31019608,86337.0,86336.0,0.0004559]
[1741402242473,0.27407468,86337.0,86336.0,0.0004559]
[1741402243853,0.28268795,86337.0,86336.0,0.0004559]
[1741402244307,0.38642829,86337.0,86336.0,0.0004559]
[1741402245558,0.45862829,86337.0,86336.0,0.0004559]
[1741402245758,0.38642829,86337.0,86336.0,0.0004559]
[1741402247245,0.42237402,86337.0,86336.0,0.0004559]
[1741402247418,0.38642829,86337.0,86336.0,0.0004559]
[1741402247801,0.28268795,86337.0,86336.0,0.0004559]
[1741402248006,0.31862961,86337.0,86336.0,0.0004559]
[1741402248233,0.30046292,86337.0,86336.0,0.0004559]
[1741402248665,0.01267599,86337.0,86336.0,0.0004559]
[1741402249081,0.011582,86338.0,86336.0,0.0004559]
[1741402249387,0.02240927,86337.0,86336.0,0.0004559]
[1741402249583,0.01082727,86337.0,86336.0,0.0004559]
[1741402249807,0.011582,86337.0,86336.0,0.0004559]
[1741402250010,0.02241027,86337.0,86336.0,0.0004559]
[1741402251067,0.04057479,86337.0,86336.0,0.0004559]
[1741402252313,0.02899279,86337.0,86336.0,0.0004559]
[1741402252524,0.02899279,86337.0,86336.0,0.2321089]
[1741402252725,0.01082827,86337.0,86336.0,0.0004559]
[1741402253131,0.011582,86338.0,86336.0,0.0004559]
[1741402253288,0.231646,86339.0,86336.0,0.0004559]
[1741402253289,0.01082827,86337.0,86336.0,0.0004559]
[1741402253484,0.01082827,86337.0,86336.0,0.0120379]
[1741402253690,0.011581,86342.0,86336.0,0.0120379]
[1741402253899,0.01082827,86337.0,86336.0,0.0120379]
[1741402254098,0.011581,86342.0,86337.0,0.243232]
[1741402254575,0.01082647,86341.0,86337.0,0.243232]
[1741402254986,0.01082647,86341.0,86339.0,0.243225]
[1741402255499,0.01124556,86340.0,86339.0,0.243225]
[1741402255913,0.0181646,86341.0,86339.0,0.243225]
[1741402255914,0.0181646,86341.0,86340.0,0.088482]
[1741402260694,0.0181646,86341.0,86340.0,0.13654016]
[1741402260895,0.0181646,86341.0,86340.0,0.13694135]
[1741402261310,0.0181646,86341.0,86340.0,0.13654016]
[1741402261597,0.0181646,86341.0,86340.0,0.13677205]
[1741402261998,0.0181646,86341.0,86340.0,0.13654016]
[1741402263575,0.0181646,86341.0,86340.0,0.13678268]
[1741402266191,0.0181646,86341.0,86340.0,0.25242268]
[1741402266396,0.0181646,86341.0,86340.0,0.251022]
[1741402267480,0.01158,86349.0,86343.0,0.011581]
[1741402267692,0.011582,86340.0,86339.0,0.3217]
[1741402268090,0.02289343,86340.0,86339.0,0.3217]
[1741402269486,0.02289343,86340.0,86336.0,0.0004559]
[1741402269487,0.011582,86337.0,86336.0,0.0004559]
[1741402269926,0.0589387,86337.0,86336.0,0.0004559]
[1741402270448,0.07710538,86337.0,86336.0,0.0004559]
[1741402270860,0.07710538,86337.0,86336.0,9e-07]
[1741402271068,0.31664623,86337.0,86336.0,9e-07]
[1741402271283,0.38884623,86337.0,86336.0,9e-07]
[1741402271486,0.243269,86324.0,86302.0,0.00045064]
[1741402271692,0.39497213,86324.0,86323.0,0.00045612]
[1741402271896,0.40613478,86324.0,86323.0,0.00045612]
[1741402272118,0.42067563,86324.0,86323.0,1.2e-07]
[1741402272331,0.94897563,86324.0,86323.0,1.2e-07]
[1741402272541,0.82730663,86324.0,86286.0,0.14868]
[1741402272759,0.011589,86287.0,86286.0,0.00038862]
[1741402272966,0.02262304,86287.0,86286.0,0.00038862]
[1741402274274,0.0369952,86287.0,86286.0,0.00038862]
[1741402277199,0.05517237,86287.0,86286.0,0.00038862]
[1741402279217,0.05517237,86287.0,86286.0,0.00072802]
[1741402282300,0.04358337,86287.0,86286.0,0.00072802]
[1741402282507,0.02921121,86287.0,86286.0,0.24410402]
[1741402282709,0.02921121,86287.0,86286.0,0.31930402]
[1741402282914,0.01817717,86287.0,86286.0,0.31930402]
[1741402283123,0.10362445,86289.0,86288.0,0.056989]
[1741402284703,0.10362445,86301.0,86299.0,0.243338]
[1741402284942,0.10362445,86301.0,86300.0,0.011587]
[1741402285550,0.12179645,86301.0,86300.0,0.011587]
[1741402288161,0.018172,86301.0,86300.0,0.011587]
[1741402288613,0.018172,86301.0,86300.0,0.202967]
[1741402288821,0.018172,86301.0,86300.0,0.24940162]
[1741402289029,0.018172,86301.0,86300.0,0.26262335]
[1741402289252,0.231652,86337.0,86300.0,0.26262335]
[1741402289253,0.11568,86339.0,86315.0,0.318994]
[1741402289467,0.011582,86337.0,86315.0,0.434674]
[1741402289681,0.01388959,86332.0,86315.0,0.434674]
[1741402290083,0.12179261,86316.0,86315.0,0.434674]
[1741402290512,0.12179261,86316.0,86315.0,0.479674]
[1741402290726,0.12179261,86316.0,86315.0,0.80176262]
[1741402290936,0.01816816,86316.0,86315.0,0.80176262]
[1741402291384,0.0001698,86323.0,86322.0,0.318974]
[1741402291603,0.0001698,86323.0,86322.0,0.640674]
[1741402291836,2.5e-07,86326.0,86325.0,0.243266]
[1741402292050,2.5e-07,86326.0,86325.0,1.30488685]
[1741402292953,2.5e-07,86326.0,86325.0,1.37488685]
[1741402293157,0.0001697,86357.0,86356.0,0.243178]
[1741402293372,0.0001697,86357.0,86356.0,0.318878]
[1741402294596,0.0001697,86357.0,86356.0,0.087279]
[1741402294805,0.01158,86354.0,86348.0,0.19134]
[1741402295013,0.01158,86354.0,86348.0,0.202921]
[1741402295206,0.01132468,86353.0,86349.0,0.01158]
[1741402295620,0.01158,86354.0,86349.0,0.01158]
[1741402296016,0.0294771,86353.0,86349.0,0.01158]
[1741402296373,0.0181606,86353.0,86349.0,0.01158]
[1741402296762,0.0181606,86353.0,86350.0,0.01158]
[1741402298180,0.0181606,86353.0,86351.0,0.01158]
[1741402299646,0.01131473,86352.0,86351.0,0.01158]
[1741402301162,0.0181606,86353.0,86352.0,0.24319]
[1741402302279,0.0181606,86353.0,86352.0,0.61429]
[1741402302467,0.0181606,86353.0,86352.0,0.68989]
[1741402311728,0.231543,86377.0,86361.0,0.011579]
[1741402311951,0.231543,86377.0,86362.0,0.1156]
[1741402312146,0.011578,86367.0,86362.0,0.1156]
[1741402312507,0.01147512,86366.0,86362.0,0.1156]
[1741402312734,0.01147512,86366.0,86362.0,0.127179]
[1741402312993,0.011578,86370.0,86362.0,0.127179]
[1741402313208,0.01148043,86369.0,86362.0,0.127179]
[1741402313433,0.011578,86368.0,86362.0,0.1156]
[1741402313663,0.01147689,86367.0,86362.0,0.1156]
[1741402315230,0.02305489,86367.0,86362.0,0.1156]
[1741402315784,0.01147689,86367.0,86362.0,0.358761]
[1741402316010,0.01147689,86367.0,86362.0,0.1156]
[1741402316211,0.011578,86367.0,86362.0,0.1156]
[1741402316355,0.02966024,86366.0,86360.0,0.243166]
[1741402316599,0.02966024,86366.0,86360.0,0.358726]
[1741402317249,0.01149231,86365.0,86360.0,0.358726]
[1741402317458,0.0164117,86376.0,86364.0,0.011578]
[1741402317783,0.34716,86386.0,86364.0,0.011578]
[1741402317784,0.231551,86374.0,86364.0,0.011578]
[1741402318046,0.01815859,86365.0,86364.0,0.011578]
[1741402318648,0.01815859,86365.0,86364.0,0.089778]
[1741402318847,0.011576,86382.0,86374.0,0.011577]
[1741402319196,0.01815684,86375.0,86374.0,0.011577]
[1741402321214,0.01815684,86375.0,86373.0,0.11556]
[1741402321499,0.00961818,86374.0,86373.0,0.11556]
[1741402322264,0.01815684,86375.0,86373.0,0.11556]
[1741402322673,0.01815684,86375.0,86374.0,0.011577]
[1741402322905,0.01815684,86375.0,86373.0,0.11556]
[1741402323434,0.02119518,86374.0,86373.0,0.11556]
[1741402323958,0.00961818,86374.0,86373.0,0.11556]
[1741402324605,0.01815684,86375.0,86373.0,0.11556]
[1741402324807,0.011577,86374.0,86373.0,0.11556]
[1741402325224,0.02120856,86374.0,86373.0,0.11556]
[1741402325772,0.02120856,86374.0,86366.0,0.127138]
[1741402325948,0.011578,86369.0,86366.0,0.11556]
[1741402326194,0.011577,86371.0,86366.0,0.11556]
[1741402326407,0.00962093,86368.0,86366.0,0.11556]
[1741402326586,0.011577,86371.0,86366.0,0.11556]
[1741402326789,0.00961916,86367.0,86366.0,0.11556]
[1741402327023,0.011577,86371.0,86366.0,0.11556]
[1741402327235,0.24313,86374.0,86366.0,0.127138]
[1741402327445,0.00962447,86370.0,86367.0,0.011578]
[1741402327632,0.03620456,86369.0,86368.0,0.231567]
[1741402327923,0.03620456,86369.0,86367.0,0.011578]
[1741402328078,0.03620456,86368.0,86367.0,0.011578]
[1741402328878,0.03620456,86374.0,86373.0,0.24313]
[1741402329270,0.011578,86370.0,86366.0,0.1158994]
[1741402329450,0.03620456,86369.0,86366.0,0.1158994]
[1741402329700,0.04582726,86369.0,86366.0,0.1158994]
[1741402330083,0.03620456,86368.0,86367.0,0.011578]
[1741402330312,0.03620456,86371.0,86367.0,0.011578]
[1741402330516,0.03620456,86368.0,86367.0,0.243147]
[1741402330622,0.00962447,86370.0,86368.0,0.011578]
[1741402330860,0.03620535,86369.0,86368.0,0.011578]
[1741402331515,0.10328686,86374.0,86370.0,0.011578]
[1741402331663,0.03621055,86373.0,86371.0,0.011577]
[1741402331883,0.04574814,86372.0,86368.0,0.011578]
[1741402332085,0.03621055,86371.0,86368.0,0.011578]
[1741402332294,0.04573309,86370.0,86369.0,0.243142]
[1741402334673,0.03621055,86370.0,86369.0,0.243142]
[1741402334920,0.03621055,86374.0,86370.0,0.011578]
[1741402335123,0.0001697,86376.0,86371.0,0.243136]
[1741402335334,0.04575158,86373.0,86371.0,0.243136]
[1741402335521,0.0362226,86372.0,86371.0,0.243136]
[1741402336445,0.0362226,86372.0,86371.0,0.011577]
[1741402336733,0.0457498,86372.0,86371.0,0.011577]
[1741402337177,0.0457498,86372.0,86371.0,0.092177]
[1741402337382,0.0362226,86372.0,86371.0,0.140177]
[1741402337587,0.0362226,86375.0,86371.0,0.140177]
[1741402337797,0.0001697,86376.0,86375.0,0.243125]
[1741402337995,0.03640227,86376.0,86375.0,0.243125]
[1741402340405,0.05455824,86376.0,86371.0,0.1286]
[1741402340651,0.03623257,86375.0,86372.0,0.231556]
[1741402340858,0.04577929,86375.0,86372.0,0.231556]
[1741402341111,0.011577,86371.0,86365.0,0.092178]
[1741402341319,0.03623257,86370.0,86366.0,0.3590484]
[1741402341630,0.04577589,86370.0,86369.0,0.0003396]
[1741402342839,0.05735389,86370.0,86369.0,0.0003396]
[1741402343020,0.04577589,86370.0,86369.0,0.0003396]
[1741402344419,0.04577589,86370.0,86369.0,0.0119176]
[1741402344602,0.03623257,86370.0,86369.0,0.0119176]
[1741402345172,0.04623245,86370.0,86369.0,0.0003396]
[1741402345801,0.06439033,86370.0,86369.0,0.0003396]
[1741402346051,0.07596833,86370.0,86369.0,0.0003396]
[1741402347934,0.06439033,86370.0,86369.0,0.0003396]
[1741402348526,0.05439045,86370.0,86369.0,0.0003396]
[1741402348753,0.06439033,86370.0,86369.0,0.0003396]
[1741402349707,0.06439033,86370.0,86369.0,0.0119176]
[1741402350199,0.05439045,86370.0,86369.0,0.0119176]
[1741402350442,0.05439045,86370.0,86369.0,0.0003396]
[1741402350906,0.06439033,86370.0,86369.0,0.0003396]
[1741402352056,0.07596833,86370.0,86369.0,0.0003396]
[1741402359799,0.06439033,86370.0,86369.0,0.0003396]
[1741402360005,0.06439033,86370.0,86369.0,0.0119176]
[1741402360300,0.02815776,86370.0,86369.0,0.0820396]
[1741402360494,0.04779158,86370.0,86369.0,0.0003396]
[1741402360669,0.05778606,86370.0,86369.0,0.0003396]
[1741402369932,0.07232691,86370.0,86369.0,0.0003396]
[1741402371074,0.09732691,86370.0,86369.0,8.542e-05]
[1741402371313,0.16952691,86370.0,86369.0,8.542e-05]
[1741402371749,0.025,86367.0,86366.0,0.0003394]
[1741402371991,0.03621358,86367.0,86366.0,0.0003394]
[1741402372230,0.27765268,86367.0,86366.0,0.0003394]
[1741402372664,0.28923068,86367.0,86366.0,0.0003394]
[1741402374111,0.30377153,86367.0,86366.0,0.0003394]
[1741402375658,0.63207153,86367.0,86366.0,0.0003394]
[1741402376622,0.74755153,86367.0,86366.0,0.0003394]
[1741402378331,0.75618902,86367.0,86366.0,0.0003394]
[1741402380671,0.62616817,86367.0,86366.0,0.0003394]
[1741402380901,0.74164817,86367.0,86366.0,0.0003394]
[1741402381575,0.41334817,86367.0,86366.0,0.0003394]
[1741402383258,0.29786817,86367.0,86366.0,0.0003394]
[1741402386962,0.06629917,86367.0,86366.0,0.0003394]
[1741402397508,0.06629917,86367.0,86366.0,9.031e-05]
[1741402399677,0.06629917,86367.0,86343.0,0.0787]
[1741402399678,0.243207,86346.0,86343.0,0.0787]
[1741402399889,0.243212,86344.0,86343.0,0.0787]
[1741402400312,0.27942558,86344.0,86343.0,0.0787]
[1741402400449,0.28964318,86344.0,86343.0,0.0787]
[1741402400652,0.243229,86338.0,86337.0,0.0485]
[1741402400884,0.28964776,86338.0,86337.0,0.0485]
[1741402401921,0.19135064,86340.0,86337.0,0.0485]
[1741402402146,0.00848516,86339.0,86337.0,0.0485]
[1741402402348,0.02198859,86339.0,86337.0,0.0485]
[1741402402770,0.011582,86338.0,86337.0,0.0485]
[1741402403173,0.011582,86337.0,86336.0,0.0787]
[1741402403378,0.231645,86339.0,86336.0,0.0787]
[1741402403577,0.243249,86331.0,86330.0,0.0827]
[1741402404053,0.2502364,86331.0,86330.0,0.0827]
[1741402404506,0.0185704,86331.0,86330.0,0.0827]
[1741402404711,0.0069874,86331.0,86330.0,0.0827]
[1741402405123,0.011583,86331.0,86330.0,0.0827]
[1741402405338,0.0185704,86331.0,86330.0,0.0827]
[1741402406023,0.24326,86327.0,86326.0,0.0003396]
[1741402406444,0.25024031,86327.0,86326.0,0.0003396]
[1741402408296,0.25750413,86327.0,86326.0,0.0003396]
[1741402410816,0.27919519,86327.0,86326.0,0.0003396]
[1741402412615,0.03593519,86327.0,86326.0,0.1119226]
[1741402413010,0.02895488,86327.0,86326.0,0.1119226]
[1741402413223,0.02895488,86327.0,86326.0,0.1612226]
[1741402415215,0.03897446,86327.0,86326.0,0.1612226]
[1741402416670,0.03897446,86327.0,86326.0,0.1496396]
[1741402417101,0.0359493,86327.0,86326.0,0.1496396]
[1741402421152,0.02868548,86327.0,86326.0,0.1496396]
[1741402422724,0.04026848,86327.0,86326.0,0.0753396]
[1741402422969,0.04026848,86327.0,86326.0,0.0003396]
[1741402423208,0.07642378,86327.0,86326.0,0.0003396]
[1741402423669,0.04026848,86327.0,86326.0,0.0003396]
[1741402424115,0.07642363,86327.0,86326.0,0.0003396]
[1741402424557,0.05473257,86327.0,86326.0,0.0003396]